[Event "Titled Tuesday Blitz January 10 Late 2023"]
[White "Wieczorek, Oskar"]
[Black "Abdulla, Murad"]
[WhiteFideId "1133950"]
[BlackFideId "2403757"]
[WhiteElo "2512"]
[BlackElo "2307"]
[Result "1-0"]
[Round "06"]
[TimeControl "180+2"]
[Date "2023.01.10"]
[WhiteClock "0:00:17"]
[BlackClock "0:00:17"]

1. e4 {[%clk 0:00:00]}  c5 {[%clk 0:00:00]} 2. Nf3 {[%clk 0:03:00]}  d6 {[%clk 0:03:00]} 3. d4 {[%clk 0:02:50]}  cxd4 {[%clk 0:03:00]} 4. Nxd4 {[%clk 0:02:50]}  Nf6 {[%clk 0:03:00]} 5. Nc3 {[%clk 0:02:51]}  g6 {[%clk 0:03:01]} 6. Be2 {[%clk 0:02:51]}  Bg7 {[%clk 0:03:01]} 7. O-O {[%clk 0:02:50]}  O-O {[%clk 0:03:01]} 8. Re1 {[%clk 0:02:51]}  Nc6 {[%clk 0:03:02]} 9. Nb3 {[%clk 0:02:52]}  Be6 {[%clk 0:03:02]} 10. Bf1 {[%clk 0:02:52]}  Rc8 {[%clk 0:03:01]} 11. Nd5 {[%clk 0:02:50]}  Ne5 {[%clk 0:02:59]} 12. c3 {[%clk 0:02:41]}  Nc4 {[%clk 0:02:32]} 13. Rb1 {[%clk 0:02:38]}  b5 {[%clk 0:02:30]} 14. Bg5 {[%clk 0:02:29]}  Bxd5 {[%clk 0:02:27]} 15. exd5 {[%clk 0:02:25]}  a5 {[%clk 0:02:06]} 16. Nd4 {[%clk 0:02:26]}  Nxd5 {[%clk 0:02:00]} 17. Nxb5 {[%clk 0:02:09]}  Nf6 {[%clk 0:01:51]} 18. a4 {[%clk 0:02:09]}  Re8 {[%clk 0:01:23]} 19. Qc2 {[%clk 0:02:09]}  Rc5 {[%clk 0:01:18]} 20. Bf4 {[%clk 0:01:44]}  e5 {[%clk 0:01:12]} 21. Bg5 {[%clk 0:01:40]}  h6 {[%clk 0:01:00]} 22. Bh4 {[%clk 0:01:40]}  g5 {[%clk 0:00:59]} 23. Bg3 {[%clk 0:01:40]}  Nh5 {[%clk 0:00:56]} 24. Rbd1 {[%clk 0:01:40]}  Nxg3 {[%clk 0:00:49]} 25. hxg3 {[%clk 0:01:40]}  d5 {[%clk 0:00:49]} 26. b4 {[%clk 0:01:41]}  Rc6 {[%clk 0:00:38]} 27. Qb3 {[%clk 0:01:35]}  e4 {[%clk 0:00:26]} 28. bxa5 {[%clk 0:01:23]}  e3 {[%clk 0:00:19]} 29. fxe3 {[%clk 0:01:23]}  Qxa5 {[%clk 0:00:19]} 30. Rxd5 {[%clk 0:01:01]}  Nxe3 {[%clk 0:00:19]} 31. Rd7 {[%clk 0:00:57]}  Rce6 {[%clk 0:00:16]} 32. Nc7 {[%clk 0:00:42]}  R6e7 {[%clk 0:00:14]} 33. Nxe8 {[%clk 0:00:39]}  Rxd7 {[%clk 0:00:10]} 34. Nxg7 {[%clk 0:00:35]}  Kxg7 {[%clk 0:00:08]} 35. Rxe3 {[%clk 0:00:26]}  Qc5 {[%clk 0:00:06]} 36. c4 {[%clk 0:00:24]}  Re7 {[%clk 0:00:06]} 37. Kf2 {[%clk 0:00:24]}  f5 {[%clk 0:00:05]} 38. Qc3+ {[%clk 0:00:24]}  Kg6 {[%clk 0:00:02]} 39. Ke2 {[%clk 0:00:24]}  Rxe3+ {[%clk 0:00:03]} 40. Qxe3 {[%clk 0:00:22]}  Qxc4+ {[%clk 0:00:03]} 41. Qd3 {[%clk 0:00:23]}  Qxa4 {[%clk 0:00:03]} 42. Kf2 {[%clk 0:00:23]}  Qa7+ {[%clk 0:00:03]} 43. Ke1 {[%clk 0:00:23]}  Qa1+ {[%clk 0:00:03]} 44. Kf2 {[%clk 0:00:22]}  Qa7+ {[%clk 0:00:03]} 45. Qe3 {[%clk 0:00:15]}  Qa2+ {[%clk 0:00:03]} 46. Be2 {[%clk 0:00:16]}  Qd5 {[%clk 0:00:02]} 47. Qe8+ {[%clk 0:00:16]}  Kg7 {[%clk 0:00:02]} 48. Qe7+ {[%clk 0:00:15]}  Kg6 {[%clk 0:00:02]} 49. Qe3 {[%clk 0:00:15]}  h5 {[%clk 0:00:02]} 50. Bd3 {[%clk 0:00:14]}  Qa2+ {[%clk 0:00:02]} 51. Kg1 {[%clk 0:00:14]}  Qa1+ {[%clk 0:00:01]} 52. Kh2 {[%clk 0:00:14]}  Qf6 {[%clk 0:00:02]} 53. Qe8+ {[%clk 0:00:14]}  Kh6 {[%clk 0:00:02]} 54. Qd7 {[%clk 0:00:14]}  h4 {[%clk 0:00:02]} 55. Qxf5 {[%clk 0:00:12]}  hxg3+ {[%clk 0:00:02]} 56. Kxg3 {[%clk 0:00:10]}  Qd6+ {[%clk 0:00:02]} 57. Kf3 {[%clk 0:00:11]}  Qc6+ {[%clk 0:00:03]} 58. Qe4 {[%clk 0:00:11]}  Qf6+ {[%clk 0:00:03]} 59. Ke2 {[%clk 0:00:12]}  Qb2+ {[%clk 0:00:03]} 60. Bc2 {[%clk 0:00:11]}  Qb5+ {[%clk 0:00:03]} 61. Qd3 {[%clk 0:00:10]}  Qe5+ {[%clk 0:00:03]} 62. Kf2 {[%clk 0:00:10]}  Qf4+ {[%clk 0:00:03]} 63. Ke1 {[%clk 0:00:11]}  Qc1+ {[%clk 0:00:03]} 64. Bd1 {[%clk 0:00:09]}  Qf4 {[%clk 0:00:03]} 65. Qf3 {[%clk 0:00:08]}  Qb4+ {[%clk 0:00:02]} 66. Kf1 {[%clk 0:00:07]}  Qc4+ {[%clk 0:00:01]} 67. Kg1 {[%clk 0:00:08]}  Qd4+ {[%clk 0:00:02]} 68. Kh1 {[%clk 0:00:08]}  Qe5 {[%clk 0:00:02]} 69. g3 {[%clk 0:00:08]}  Kg7 {[%clk 0:00:01]} 70. Kg2 {[%clk 0:00:06]}  Qc5 {[%clk 0:00:01]} 71. Be2 {[%clk 0:00:06]}  Kh6 {[%clk 0:00:01]} 72. Qe4 {[%clk 0:00:05]}  Kg7 {[%clk 0:00:02]} 73. Bd3 {[%clk 0:00:05]}  Kf8 {[%clk 0:00:03]} 74. Qf5+ {[%clk 0:00:05]}  Qxf5 {[%clk 0:00:03]} 75. Bxf5 {[%clk 0:00:05]}  Kg7 {[%clk 0:00:02]} 76. g4 {[%clk 0:00:06]}  Kf6 {[%clk 0:00:03]} 77. Kf3 {[%clk 0:00:06]}  Ke5 {[%clk 0:00:04]} 78. Ke3 {[%clk 0:00:07]}  Kd5 {[%clk 0:00:04]} 79. Bc8 {[%clk 0:00:08]}  Ke5 {[%clk 0:00:04]} 80. Bb7 {[%clk 0:00:07]}  Kd6 {[%clk 0:00:05]} 81. Ke4 {[%clk 0:00:07]}  Ke6 {[%clk 0:00:05]} 82. Bd5+ {[%clk 0:00:08]}  Kf6 {[%clk 0:00:05]} 83. Kd4 {[%clk 0:00:08]}  Ke7 {[%clk 0:00:06]} 84. Ke5 {[%clk 0:00:09]}  Kd7 {[%clk 0:00:06]} 85. Kf5 {[%clk 0:00:09]}  Kd6 {[%clk 0:00:06]} 86. Kxg5 {[%clk 0:00:10]}  Kxd5 {[%clk 0:00:07]} 87. Kf6 {[%clk 0:00:10]}  Kd6 {[%clk 0:00:08]} 88. g5 {[%clk 0:00:11]}  Kd5 {[%clk 0:00:08]} 89. g6 {[%clk 0:00:12]}  Ke4 {[%clk 0:00:09]} 90. g7 {[%clk 0:00:13]}  Kf4 {[%clk 0:00:10]} 91. g8=Q {[%clk 0:00:13]}  Ke3 {[%clk 0:00:11]} 92. Qd5 {[%clk 0:00:14]}  Kf2 {[%clk 0:00:11]} 93. Kf5 {[%clk 0:00:14]}  Kg3 {[%clk 0:00:12]} 94. Qd3+ {[%clk 0:00:15]}  Kf2 {[%clk 0:00:13]} 95. Kg4 {[%clk 0:00:15]}  Kg1 {[%clk 0:00:14]} 96. Qe2 {[%clk 0:00:15]}  Kh1 {[%clk 0:00:14]} 97. Qd2 {[%clk 0:00:15]}  Kg1 {[%clk 0:00:14]} 98. Qc2 {[%clk 0:00:14]}  Kf1 {[%clk 0:00:15]} 99. Qb2 {[%clk 0:00:15]}  Ke1 {[%clk 0:00:15]} 100. Kf3 {[%clk 0:00:16]}  Kd1 {[%clk 0:00:16]} 101. Ke3 {[%clk 0:00:17]}  Ke1 {[%clk 0:00:17]} 102. Qc1# {[%clk 0:00:17]} 1-0


[Site "https://www.chess.com"]

[Event "Titled Tuesday Blitz January 10 Late 2023"]
[White "Berezin, Viktor"]
[Black "Martinez Ramirez, Lennis"]
[WhiteFideId "14107872"]
[BlackFideId "3509079"]
[WhiteElo "2307"]
[BlackElo "2426"]
[Result "0-1"]
[Round "06"]
[TimeControl "180+2"]
[Date "2023.01.10"]
[WhiteClock "0:00:11"]
[BlackClock "0:00:28"]

1. d4 {[%clk 0:00:00]}  d5 {[%clk 0:00:00]} 2. c4 {[%clk 0:03:00]}  e6 {[%clk 0:02:59]} 3. Nf3 {[%clk 0:03:00]}  Nf6 {[%clk 0:02:59]} 4. g3 {[%clk 0:03:00]}  dxc4 {[%clk 0:02:59]} 5. Bg2 {[%clk 0:03:01]}  Nc6 {[%clk 0:02:59]} 6. O-O {[%clk 0:03:01]}  a6 {[%clk 0:03:00]} 7. a4 {[%clk 0:03:01]}  Rb8 {[%clk 0:03:00]} 8. e3 {[%clk 0:03:01]}  Bb4 {[%clk 0:02:56]} 9. Nfd2 {[%clk 0:02:56]}  Na5 {[%clk 0:02:49]} 10. b3 {[%clk 0:02:50]}  cxb3 {[%clk 0:02:44]} 11. Nxb3 {[%clk 0:02:40]}  O-O {[%clk 0:02:19]} 12. Nxa5 {[%clk 0:02:33]}  Bxa5 {[%clk 0:02:19]} 13. Ba3 {[%clk 0:02:24]}  Re8 {[%clk 0:02:20]} 14. Nd2 {[%clk 0:02:25]}  b5 {[%clk 0:02:03]} 15. axb5 {[%clk 0:02:24]}  axb5 {[%clk 0:01:59]} 16. Nb3 {[%clk 0:02:20]}  Bb6 {[%clk 0:01:59]} 17. Bc5 {[%clk 0:02:21]}  Bb7 {[%clk 0:01:59]} 18. Bxb7 {[%clk 0:02:15]}  Rxb7 {[%clk 0:01:57]} 19. Qd3 {[%clk 0:02:04]}  c6 {[%clk 0:01:57]} 20. Rfc1 {[%clk 0:02:05]}  Nd7 {[%clk 0:01:54]} 21. Bxb6 {[%clk 0:02:02]}  Rxb6 {[%clk 0:01:53]} 22. Qe4 {[%clk 0:02:01]}  Nf6 {[%clk 0:01:54]} 23. Qe5 {[%clk 0:01:54]}  Nd5 {[%clk 0:01:48]} 24. Nc5 {[%clk 0:01:51]}  b4 {[%clk 0:01:48]} 25. Ne4 {[%clk 0:01:25]}  b3 {[%clk 0:01:42]} 26. Rab1 {[%clk 0:01:11]}  Qb8 {[%clk 0:01:40]} 27. Qh5 {[%clk 0:01:06]}  h6 {[%clk 0:01:35]} 28. g4 {[%clk 0:00:59]}  e5 {[%clk 0:01:21]} 29. Nc5 {[%clk 0:00:49]}  Re7 {[%clk 0:01:14]} 30. g5 {[%clk 0:00:34]}  exd4 {[%clk 0:00:59]} 31. exd4 {[%clk 0:00:30]}  Nf4 {[%clk 0:00:54]} 32. Qf3 {[%clk 0:00:29]}  Ne2+ {[%clk 0:00:46]} 33. Kg2 {[%clk 0:00:18]}  Nxc1 {[%clk 0:00:42]} 34. Rxc1 {[%clk 0:00:18]}  b2 {[%clk 0:00:42]} 35. Rb1 {[%clk 0:00:18]}  hxg5 {[%clk 0:00:39]} 36. Qf5 {[%clk 0:00:19]}  Qd8 {[%clk 0:00:40]} 37. Qxg5 {[%clk 0:00:16]}  Qd5+ {[%clk 0:00:30]} 38. Qxd5 {[%clk 0:00:12]}  cxd5 {[%clk 0:00:30]} 39. Nd3 {[%clk 0:00:10]}  Re2 {[%clk 0:00:31]} 40. Kf3 {[%clk 0:00:11]}  Rc2 {[%clk 0:00:30]} 41. Ke3 {[%clk 0:00:10]}  Rb3 {[%clk 0:00:28]} 42. f4 {[%clk 0:00:11]}  Rcc3 {[%clk 0:00:28]} 0-1


[Site "https://www.chess.com"]

[Event "Titled Tuesday Blitz January 10 Late 2023"]
[White "Barrientos, Sergio E"]
[Black "reevecanada"]
[WhiteFideId "4401824"]
[WhiteElo "2479"]
[BlackElo "2497"]
[Result "1-0"]
[Round "06"]
[TimeControl "180+2"]
[Date "2023.01.10"]
[WhiteClock "0:00:25"]
[BlackClock "0:00:36"]

1. c4 {[%clk 0:00:00]}  e5 {[%clk 0:00:00]} 2. g3 {[%clk 0:03:00]}  c6 {[%clk 0:02:55]} 3. d4 {[%clk 0:02:58]}  e4 {[%clk 0:02:52]} 4. Nc3 {[%clk 0:02:56]}  d5 {[%clk 0:02:50]} 5. cxd5 {[%clk 0:02:47]}  cxd5 {[%clk 0:02:49]} 6. Qb3 {[%clk 0:02:47]}  Nf6 {[%clk 0:02:46]} 7. Bg5 {[%clk 0:02:48]}  Nc6 {[%clk 0:02:44]} 8. e3 {[%clk 0:02:47]}  Bb4 {[%clk 0:02:41]} 9. Ne2 {[%clk 0:02:44]}  Bg4 {[%clk 0:02:38]} 10. a3 {[%clk 0:02:37]}  Bf3 {[%clk 0:02:34]} 11. Rg1 {[%clk 0:02:30]}  Bxe2 {[%clk 0:02:29]} 12. Bxe2 {[%clk 0:02:22]}  Bxc3+ {[%clk 0:02:20]} 13. bxc3 {[%clk 0:02:16]}  O-O {[%clk 0:02:19]} 14. Bxf6 {[%clk 0:02:13]}  gxf6 {[%clk 0:02:18]} 15. Kf1 {[%clk 0:02:08]}  Rc8 {[%clk 0:02:15]} 16. Kg2 {[%clk 0:01:55]}  Na5 {[%clk 0:02:10]} 17. Qb4 {[%clk 0:01:54]}  b6 {[%clk 0:02:10]} 18. Rgc1 {[%clk 0:01:55]}  Nc4 {[%clk 0:02:09]} 19. a4 {[%clk 0:01:54]}  Qd7 {[%clk 0:02:08]} 20. Rab1 {[%clk 0:01:52]}  Rc7 {[%clk 0:02:06]} 21. Qb5 {[%clk 0:01:49]}  Qe6 {[%clk 0:02:04]} 22. Bxc4 {[%clk 0:01:42]}  Rxc4 {[%clk 0:02:03]} 23. a5 {[%clk 0:01:29]}  bxa5 {[%clk 0:02:01]} 24. Qxa5 {[%clk 0:01:30]}  Rfc8 {[%clk 0:01:57]} 25. Qxa7 {[%clk 0:01:29]}  Rxc3 {[%clk 0:01:56]} 26. Rxc3 {[%clk 0:01:19]}  Rxc3 {[%clk 0:01:55]} 27. Rb8+ {[%clk 0:01:20]}  Kg7 {[%clk 0:01:55]} 28. Qa8 {[%clk 0:01:20]}  Qd6 {[%clk 0:01:55]} 29. Rg8+ {[%clk 0:01:15]}  Kh6 {[%clk 0:01:37]} 30. Qe8 {[%clk 0:01:13]}  Rc7 {[%clk 0:01:36]} 31. Rg4 {[%clk 0:01:00]}  f5 {[%clk 0:01:32]} 32. Rf4 {[%clk 0:00:56]}  Qe6 {[%clk 0:01:29]} 33. Qf8+ {[%clk 0:00:48]}  Kg5 {[%clk 0:01:27]} 34. Qg8+ {[%clk 0:00:45]}  Kf6 {[%clk 0:01:21]} 35. g4 {[%clk 0:00:33]}  Ke7 {[%clk 0:01:14]} 36. Rxf5 {[%clk 0:00:28]}  Kd6 {[%clk 0:01:09]} 37. Qd8+ {[%clk 0:00:27]}  Kc6 {[%clk 0:01:03]} 38. Rf6 {[%clk 0:00:24]}  Rd7 {[%clk 0:00:58]} 39. Rxe6+ {[%clk 0:00:24]}  fxe6 {[%clk 0:00:40]} 40. Qf6 {[%clk 0:00:22]}  Kd6 {[%clk 0:00:41]} 41. f3 {[%clk 0:00:21]}  exf3+ {[%clk 0:00:41]} 42. Kxf3 {[%clk 0:00:21]}  Rc7 {[%clk 0:00:39]} 43. Qe5+ {[%clk 0:00:21]}  Kd7 {[%clk 0:00:39]} 44. h4 {[%clk 0:00:20]}  Rc1 {[%clk 0:00:39]} 45. h5 {[%clk 0:00:21]}  Rf1+ {[%clk 0:00:38]} 46. Kg2 {[%clk 0:00:21]}  Rf7 {[%clk 0:00:39]} 47. g5 {[%clk 0:00:21]}  Re7 {[%clk 0:00:40]} 48. g6 {[%clk 0:00:22]}  hxg6 {[%clk 0:00:40]} 49. hxg6 {[%clk 0:00:22]}  Re8 {[%clk 0:00:31]} 50. Qf6 {[%clk 0:00:23]}  Rg8 {[%clk 0:00:32]} 51. Qf7+ {[%clk 0:00:22]}  Kd6 {[%clk 0:00:31]} 52. Qxg8 {[%clk 0:00:22]}  Ke7 {[%clk 0:00:31]} 53. Qf7+ {[%clk 0:00:23]}  Kd6 {[%clk 0:00:32]} 54. g7 {[%clk 0:00:23]}  Kc6 {[%clk 0:00:33]} 55. Qxe6+ {[%clk 0:00:24]}  Kb5 {[%clk 0:00:33]} 56. Qxd5+ {[%clk 0:00:24]}  Kb4 {[%clk 0:00:33]} 57. Qc5+ {[%clk 0:00:24]}  Kb3 {[%clk 0:00:34]} 58. g8=Q+ {[%clk 0:00:25]}  Kb2 {[%clk 0:00:35]} 59. Qb8+ {[%clk 0:00:25]}  Ka1 {[%clk 0:00:36]} 60. Qca7# {[%clk 0:00:25]} 1-0


[Site "https://www.chess.com"]

[Event "Titled Tuesday Blitz January 10 Late 2023"]
[White "Pein, Jonathan"]
[Black "Hamley, Ryan"]
[WhiteFideId "417092"]
[BlackFideId "30959497"]
[WhiteElo "2265"]
[BlackElo "2092"]
[Result "1-0"]
[Round "06"]
[TimeControl "180+2"]
[Date "2023.01.10"]
[WhiteClock "0:00:25"]
[BlackClock "0:00:41"]

1. e4 {[%clk 0:00:00]}  g6 {[%clk 0:00:00]} 2. h4 {[%clk 0:03:00]}  h5 {[%clk 0:02:58]} 3. d4 {[%clk 0:02:59]}  Bg7 {[%clk 0:02:58]} 4. Nc3 {[%clk 0:02:59]}  c6 {[%clk 0:02:58]} 5. Nh3 {[%clk 0:02:59]}  d5 {[%clk 0:02:59]} 6. e5 {[%clk 0:02:59]}  e6 {[%clk 0:02:59]} 7. Bd3 {[%clk 0:02:49]}  a6 {[%clk 0:02:58]} 8. Bg5 {[%clk 0:02:48]}  Qc7 {[%clk 0:02:57]} 9. Nf4 {[%clk 0:02:45]}  c5 {[%clk 0:02:56]} 10. Nxg6 {[%clk 0:02:42]}  fxg6 {[%clk 0:02:53]} 11. Bxg6+ {[%clk 0:02:28]}  Kd7 {[%clk 0:02:40]} 12. Qf3 {[%clk 0:02:28]}  cxd4 {[%clk 0:02:41]} 13. Nxd5 {[%clk 0:02:17]}  Qxe5+ {[%clk 0:02:41]} 14. Kf1 {[%clk 0:01:58]}  Qxd5 {[%clk 0:02:24]} 15. Qf7+ {[%clk 0:01:43]}  Kc6 {[%clk 0:01:34]} 16. Qxg7 {[%clk 0:01:38]}  Nh6 {[%clk 0:01:34]} 17. Qxh8 {[%clk 0:01:35]}  Nd7 {[%clk 0:01:16]} 18. Qxh6 {[%clk 0:01:29]}  Ne5 {[%clk 0:01:12]} 19. Qxh5 {[%clk 0:01:21]}  Qb5+ {[%clk 0:01:13]} 20. Kg1 {[%clk 0:01:12]}  Bd7 {[%clk 0:01:01]} 21. Re1 {[%clk 0:00:58]}  Nxg6 {[%clk 0:01:00]} 22. Qxg6 {[%clk 0:00:51]}  Rf8 {[%clk 0:00:51]} 23. Qe4+ {[%clk 0:00:48]}  Kc7 {[%clk 0:00:51]} 24. Qxd4 {[%clk 0:00:47]}  Bc6 {[%clk 0:00:50]} 25. Bf4+ {[%clk 0:00:39]}  Kc8 {[%clk 0:00:51]} 26. Qd6 {[%clk 0:00:38]}  Rxf4 {[%clk 0:00:50]} 27. Qxf4 {[%clk 0:00:35]}  Qd5 {[%clk 0:00:49]} 28. Qg3 {[%clk 0:00:34]}  b5 {[%clk 0:00:49]} 29. h5 {[%clk 0:00:29]}  Qd2 {[%clk 0:00:47]} 30. Rf1 {[%clk 0:00:29]}  Qh6 {[%clk 0:00:45]} 31. Qg6 {[%clk 0:00:28]}  Qh8 {[%clk 0:00:43]} 32. h6 {[%clk 0:00:25]}  Qxb2 {[%clk 0:00:41]} 33. h7 {[%clk 0:00:25]} 1-0


[Site "https://www.chess.com"]

[Event "Titled Tuesday Blitz January 10 Late 2023"]
[White "Gasparyan, David"]
[Black "Rastbod, Ali"]
[WhiteFideId "13311980"]
[BlackFideId "12567477"]
[WhiteElo "2142"]
[BlackElo "2318"]
[Result "0-1"]
[Round "06"]
[TimeControl "180+2"]
[Date "2023.01.10"]
[WhiteClock "0:00:12"]
[BlackClock "0:00:10"]

1. Nf3 {[%clk 0:00:00]}  c5 {[%clk 0:00:00]} 2. g3 {[%clk 0:03:00]}  Nc6 {[%clk 0:02:55]} 3. Bg2 {[%clk 0:03:01]}  g6 {[%clk 0:02:54]} 4. O-O {[%clk 0:03:01]}  Bg7 {[%clk 0:02:53]} 5. d3 {[%clk 0:03:02]}  d5 {[%clk 0:02:53]} 6. Nbd2 {[%clk 0:02:59]}  e5 {[%clk 0:02:51]} 7. e4 {[%clk 0:02:58]}  d4 {[%clk 0:02:30]} 8. a4 {[%clk 0:02:56]}  Nge7 {[%clk 0:02:30]} 9. Nc4 {[%clk 0:02:53]}  h6 {[%clk 0:02:29]} 10. Ne1 {[%clk 0:02:52]}  O-O {[%clk 0:02:29]} 11. f4 {[%clk 0:02:47]}  exf4 {[%clk 0:02:24]} 12. gxf4 {[%clk 0:02:46]}  f5 {[%clk 0:02:23]} 13. e5 {[%clk 0:02:44]}  Be6 {[%clk 0:02:23]} 14. Nd6 {[%clk 0:02:44]}  Qd7 {[%clk 0:02:23]} 15. Bd2 {[%clk 0:02:39]}  Kh7 {[%clk 0:02:22]} 16. Kh1 {[%clk 0:02:24]}  Nd5 {[%clk 0:02:19]} 17. Rg1 {[%clk 0:02:21]}  Rg8 {[%clk 0:02:10]} 18. Qf3 {[%clk 0:02:13]}  Bf8 {[%clk 0:02:08]} 19. Nc4 {[%clk 0:02:10]}  Be7 {[%clk 0:01:56]} 20. Qh3 {[%clk 0:02:01]}  b6 {[%clk 0:01:52]} 21. Nf3 {[%clk 0:01:57]}  Raf8 {[%clk 0:01:42]} 22. Raf1 {[%clk 0:01:54]}  Ncb4 {[%clk 0:01:36]} 23. Ne1 {[%clk 0:01:41]}  Qxa4 {[%clk 0:01:29]} 24. b3 {[%clk 0:01:28]}  Qa2 {[%clk 0:01:20]} 25. Rf2 {[%clk 0:01:28]}  Nc3 {[%clk 0:01:14]} 26. Bxc3 {[%clk 0:01:28]}  dxc3 {[%clk 0:01:01]} 27. Ne3 {[%clk 0:01:24]}  Bxb3 {[%clk 0:01:02]} 28. Bf3 {[%clk 0:01:21]}  Be6 {[%clk 0:00:55]} 29. Rfg2 {[%clk 0:01:13]}  Qb1 {[%clk 0:00:54]} 30. d4 {[%clk 0:01:13]}  cxd4 {[%clk 0:00:47]} 31. Nd3 {[%clk 0:01:06]}  Qa2 {[%clk 0:00:33]} 32. Nxb4 {[%clk 0:01:02]}  Bxb4 {[%clk 0:00:17]} 33. Nd1 {[%clk 0:01:02]}  Bd5 {[%clk 0:00:18]} 34. Nf2 {[%clk 0:00:59]}  Bxf3 {[%clk 0:00:13]} 35. Qxf3 {[%clk 0:00:49]}  Qf7 {[%clk 0:00:11]} 36. Nd3 {[%clk 0:00:50]}  Bc5 {[%clk 0:00:07]} 37. Qc6 {[%clk 0:00:49]}  Rc8 {[%clk 0:00:05]} 38. Qf3 {[%clk 0:00:47]}  Qe6 {[%clk 0:00:06]} 39. h4 {[%clk 0:00:40]}  Rc7 {[%clk 0:00:05]} 40. h5 {[%clk 0:00:38]}  Rcg7 {[%clk 0:00:05]} 41. Nf2 {[%clk 0:00:37]}  g5 {[%clk 0:00:06]} 42. fxg5 {[%clk 0:00:29]}  hxg5 {[%clk 0:00:04]} 43. h6 {[%clk 0:00:28]}  Rg6 {[%clk 0:00:05]} 44. Rh2 {[%clk 0:00:23]}  g4 {[%clk 0:00:04]} 45. Qf4 {[%clk 0:00:19]}  g3 {[%clk 0:00:03]} 46. Rhg2 {[%clk 0:00:17]}  gxf2 {[%clk 0:00:03]} 47. Qxf2 {[%clk 0:00:10]}  Rxh6+ {[%clk 0:00:03]} 48. Rh2 {[%clk 0:00:09]}  Rxg1+ {[%clk 0:00:02]} 49. Qxg1 {[%clk 0:00:09]}  Qd5+ {[%clk 0:00:03]} 50. Qg2 {[%clk 0:00:08]}  Rxh2+ {[%clk 0:00:03]} 51. Kxh2 {[%clk 0:00:08]}  Qxg2+ {[%clk 0:00:03]} 52. Kxg2 {[%clk 0:00:09]}  Kg6 {[%clk 0:00:04]} 53. Kf3 {[%clk 0:00:10]}  Kf7 {[%clk 0:00:04]} 54. Kf4 {[%clk 0:00:10]}  Ke6 {[%clk 0:00:05]} 55. Kf3 {[%clk 0:00:11]}  d3 {[%clk 0:00:06]} 56. cxd3 {[%clk 0:00:10]}  c2 {[%clk 0:00:06]} 57. d4 {[%clk 0:00:10]}  Bxd4 {[%clk 0:00:07]} 58. Ke2 {[%clk 0:00:10]}  c1=Q {[%clk 0:00:07]} 59. Kd3 {[%clk 0:00:10]}  Qc3+ {[%clk 0:00:08]} 60. Ke2 {[%clk 0:00:11]}  Qe3+ {[%clk 0:00:09]} 61. Kd1 {[%clk 0:00:11]}  Qf2 {[%clk 0:00:09]} 62. Kc1 {[%clk 0:00:12]}  Bc3 {[%clk 0:00:10]} 63. Kb1 {[%clk 0:00:12]}  Qb2# {[%clk 0:00:10]} 0-1


[Site "https://www.chess.com"]

[Event "Titled Tuesday Blitz January 10 Late 2023"]
[White "Djokic, Mihailo"]
[Black "Lopez Gracia, Fernando"]
[WhiteFideId "976440"]
[BlackFideId "2207184"]
[WhiteElo "2192"]
[BlackElo "2255"]
[Result "1-0"]
[Round "06"]
[TimeControl "180+2"]
[Date "2023.01.10"]
[WhiteClock "0:02:49"]
[BlackClock "0:02:28"]

1. e4 {[%clk 0:00:00]}  e5 {[%clk 0:00:00]} 2. Nf3 {[%clk 0:03:00]}  Nc6 {[%clk 0:03:00]} 3. Nc3 {[%clk 0:02:59]}  Nf6 {[%clk 0:03:01]} 4. Bb5 {[%clk 0:02:58]}  Bd6 {[%clk 0:03:01]} 5. Bxc6 {[%clk 0:02:59]}  dxc6 {[%clk 0:03:00]} 6. d4 {[%clk 0:02:59]}  exd4 {[%clk 0:03:00]} 7. Qxd4 {[%clk 0:03:00]}  c5 {[%clk 0:02:59]} 8. Qd3 {[%clk 0:03:01]}  Nd7 {[%clk 0:02:51]} 9. Bg5 {[%clk 0:03:01]}  f6 {[%clk 0:02:40]} 10. Bh4 {[%clk 0:03:00]}  O-O {[%clk 0:02:40]} 11. O-O-O {[%clk 0:02:59]}  Qe7 {[%clk 0:02:37]} 12. Nd5 {[%clk 0:02:58]}  Qf7 {[%clk 0:02:32]} 13. Bg3 {[%clk 0:02:58]}  Bxg3 {[%clk 0:02:32]} 14. hxg3 {[%clk 0:02:54]}  Nb6 {[%clk 0:02:28]} 15. e5 {[%clk 0:02:54]}  Qg6 {[%clk 0:02:28]} 16. Ne7+ {[%clk 0:02:49]} 1-0


[Site "https://www.chess.com"]

[Event "Titled Tuesday Blitz January 10 Late 2023"]
[White "Kuznecovs, Nikita"]
[Black "Mladek, Richard"]
[WhiteFideId "11604557"]
[BlackFideId "386588"]
[WhiteElo "2287"]
[BlackElo "2436"]
[Result "1-0"]
[Round "06"]
[TimeControl "180+2"]
[Date "2023.01.10"]
[WhiteClock "0:00:06"]
[BlackClock "0:00:04"]

1. Nf3 {[%clk 0:00:00]}  Nf6 {[%clk 0:00:00]} 2. g3 {[%clk 0:02:49]}  b6 {[%clk 0:02:59]} 3. Bg2 {[%clk 0:02:48]}  Bb7 {[%clk 0:02:53]} 4. c4 {[%clk 0:02:49]}  e6 {[%clk 0:02:53]} 5. O-O {[%clk 0:02:48]}  g6 {[%clk 0:02:53]} 6. d4 {[%clk 0:02:45]}  Bg7 {[%clk 0:02:50]} 7. Nc3 {[%clk 0:02:42]}  Ne4 {[%clk 0:02:51]} 8. Nxe4 {[%clk 0:02:43]}  Bxe4 {[%clk 0:02:49]} 9. Bh3 {[%clk 0:02:37]}  O-O {[%clk 0:02:49]} 10. Ne1 {[%clk 0:02:30]}  Bb7 {[%clk 0:02:47]} 11. f3 {[%clk 0:02:23]}  d5 {[%clk 0:02:19]} 12. cxd5 {[%clk 0:02:19]}  Qxd5 {[%clk 0:02:17]} 13. Nc2 {[%clk 0:02:04]}  Rd8 {[%clk 0:01:54]} 14. e4 {[%clk 0:01:55]}  Qd6 {[%clk 0:01:48]} 15. Bg5 {[%clk 0:01:33]}  Rd7 {[%clk 0:01:42]} 16. Bf4 {[%clk 0:01:25]}  Qe7 {[%clk 0:01:34]} 17. Qc1 {[%clk 0:01:21]}  Na6 {[%clk 0:01:21]} 18. Rd1 {[%clk 0:01:18]}  Rad8 {[%clk 0:01:11]} 19. Qe3 {[%clk 0:01:15]}  Nb4 {[%clk 0:01:08]} 20. Nxb4 {[%clk 0:01:11]}  Qxb4 {[%clk 0:01:05]} 21. d5 {[%clk 0:00:59]}  f5 {[%clk 0:01:05]} 22. a3 {[%clk 0:00:53]}  Qe7 {[%clk 0:00:37]} 23. Bg5 {[%clk 0:00:44]}  Bf6 {[%clk 0:00:36]} 24. Bxf6 {[%clk 0:00:27]}  Qxf6 {[%clk 0:00:36]} 25. Rac1 {[%clk 0:00:28]}  exd5 {[%clk 0:00:37]} 26. exf5 {[%clk 0:00:21]}  d4 {[%clk 0:00:30]} 27. Qf4 {[%clk 0:00:17]}  c5 {[%clk 0:00:26]} 28. fxg6 {[%clk 0:00:17]}  Qxf4 {[%clk 0:00:22]} 29. gxf4 {[%clk 0:00:12]}  Rg7 {[%clk 0:00:22]} 30. b4 {[%clk 0:00:13]}  Bxf3 {[%clk 0:00:20]} 31. Rd2 {[%clk 0:00:11]}  Rxg6+ {[%clk 0:00:18]} 32. Kf2 {[%clk 0:00:08]}  Bb7 {[%clk 0:00:13]} 33. bxc5 {[%clk 0:00:08]}  Rc6 {[%clk 0:00:11]} 34. Bg2 {[%clk 0:00:09]}  Rc7 {[%clk 0:00:10]} 35. Bxb7 {[%clk 0:00:09]}  Rxb7 {[%clk 0:00:08]} 36. c6 {[%clk 0:00:08]}  Rc7 {[%clk 0:00:09]} 37. Ke2 {[%clk 0:00:09]}  Kf7 {[%clk 0:00:09]} 38. Kd3 {[%clk 0:00:09]}  Rd6 {[%clk 0:00:07]} 39. Rdc2 {[%clk 0:00:09]}  Kf6 {[%clk 0:00:06]} 40. Rc4 {[%clk 0:00:09]}  Kf5 {[%clk 0:00:07]} 41. a4 {[%clk 0:00:09]}  h5 {[%clk 0:00:04]} 42. R1c2 {[%clk 0:00:06]}  h4 {[%clk 0:00:04]} 43. a5 {[%clk 0:00:06]}  bxa5 {[%clk 0:00:04]} 44. Rc5+ {[%clk 0:00:07]}  Kxf4 {[%clk 0:00:04]} 45. Rf2+ {[%clk 0:00:07]}  Kg4 {[%clk 0:00:05]} 46. Ke4 {[%clk 0:00:07]}  Re7+ {[%clk 0:00:05]} 47. Kd3 {[%clk 0:00:07]}  Re3+ {[%clk 0:00:04]} 48. Kd2 {[%clk 0:00:07]}  Rb3 {[%clk 0:00:05]} 49. c7 {[%clk 0:00:08]}  Rb2+ {[%clk 0:00:03]} 50. Kd3 {[%clk 0:00:08]}  Rxf2 {[%clk 0:00:04]} 51. c8=Q+ {[%clk 0:00:09]}  Kf3 {[%clk 0:00:03]} 52. Rf5+ {[%clk 0:00:09]}  Kg2 {[%clk 0:00:04]} 53. Qg8+ {[%clk 0:00:09]}  Kf1 {[%clk 0:00:04]} 54. Rxf2+ {[%clk 0:00:07]}  Kxf2 {[%clk 0:00:04]} 55. Qg4 {[%clk 0:00:06]}  Rf6 {[%clk 0:00:05]} 56. Qxh4+ {[%clk 0:00:06]}  Kg1 {[%clk 0:00:04]} 57. Qxf6 {[%clk 0:00:06]} 1-0


[Site "https://www.chess.com"]